bitfinex/quotes_SOLUSD_20260305
["timestamp","ask_amount","ask_price","bid_price","bid_amount"]
[1772671919917,0.51572408,91.017,90.99,0.50881109]
[1772671921722,4.16219028,91.0,90.965,0.50881108]
[1772671921908,0.51572408,90.997,90.958,0.50881108]
[1772671922104,0.51572408,90.997,90.937,0.26571932]
[1772671922105,0.51572408,90.979,90.96,1e-08]
[1772671922709,0.51572408,90.969,90.96,1e-08]
[1772671922907,0.51572408,90.969,90.937,0.26571932]
[1772671924226,4.16219028,90.97,90.937,0.26571932]
[1772671924227,0.51572408,90.967,90.937,0.26571932]
[1772671924411,0.29107846,90.949,90.92,1e-08]
[1772671924725,0.29107846,90.939,90.92,1e-08]
[1772671926331,0.51572408,90.929,90.865,27.51305345]
[1772671926655,0.51572408,90.919,90.89,1e-08]
[1772671928428,0.51572408,90.909,90.859,11.00601982]
[1772671929633,0.51572408,90.909,90.863,11.00554594]
[1772671930435,0.51572408,90.907,90.871,0.50881108]
[1772671930618,0.51572408,90.907,90.851,27.51752391]
[1772671930935,0.94134797,107.67,90.838,49.44]
[1772671930936,10.99819629,90.924,90.881,0.50881108]
[1772671931731,0.51572408,90.923,90.881,0.50881108]
[1772671932748,0.51572408,90.921,90.883,0.50881108]
[1772671933940,0.51572408,90.939,90.883,0.50881108]
[1772671934150,0.51572408,90.941,90.883,0.50881108]
[1772671934329,0.51572408,90.938,90.883,0.50881108]
[1772671935041,0.51572408,90.936,90.885,0.50881108]
[1772671935246,0.51572408,90.929,90.885,0.50881108]
[1772671936935,10.99662403,90.937,90.885,0.50881108]
[1772671937119,0.51572408,90.938,90.887,0.50881108]
[1772671939334,0.49644444,90.936,90.889,0.48791447]
[1772671939718,0.49644444,90.929,90.889,0.48791447]
[1772671940734,38.48818412,90.937,90.889,0.48791447]
[1772671941038,0.49644444,90.936,90.889,0.48791447]
[1772671944046,0.49644444,90.919,90.88,0.2]
[1772671945942,0.49644444,90.908,90.861,0.48791447]
[1772671946642,0.49644444,90.908,90.863,0.48791447]
[1772671947850,0.50646841,90.906,90.863,0.48791447]
[1772671948743,0.50646841,90.906,90.865,0.49595126]
[1772671949542,3.69383402,90.918,90.865,0.49595126]
[1772671949841,10.99795438,90.926,90.866,38.51825765]
[1772671950047,0.50646841,90.925,90.867,0.49595126]
[1772671953926,0.50646841,90.923,90.869,0.49595126]
[1772671954450,38.49368702,90.924,90.86,0.49595126]
[1772671954451,0.50646841,90.919,90.86,0.49595126]
[1772671954660,93.48466849,90.924,90.858,0.79742015]
[1772671954661,0.50646841,90.889,90.858,0.79742015]
[1772671955642,0.50646841,90.889,90.858,1e-08]
[1772671956247,0.50646841,90.887,90.858,1e-08]
[1772671956545,0.50646841,90.887,90.859,0.49595126]
[1772671957043,11.00209568,90.892,90.859,0.49595126]
[1772671957242,11.50807394,90.896,90.859,0.49595126]
[1772671957624,11.00160553,90.896,90.859,0.49595126]
[1772671959633,0.50646841,90.902,90.861,0.49595126]
[1772671962535,11.00097908,90.901,90.863,0.49595126]
[1772671962856,4.18392239,90.93,90.863,0.49595126]
[1772671963047,38.49241698,90.927,90.863,0.49595126]
[1772671964959,0.50646841,90.926,90.865,0.49595126]
[1772671970242,0.49393983,90.924,90.867,0.53299557]
[1772671972859,0.49393983,90.922,90.869,0.53299557]
[1772671974557,0.49393983,90.919,90.869,0.53299557]
[1772671975557,0.49393983,90.917,90.871,0.53299557]
[1772671977247,38.49622736,90.918,90.85,0.1]
[1772671977248,0.49393983,90.889,90.85,0.1]
[1772671977452,0.49393983,90.887,90.85,0.1]
[1772671980474,38.50978147,90.886,90.85,0.63299557]
[1772671980681,0.49393983,90.885,90.85,0.63299557]
[1772671981772,38.51062892,90.884,90.85,0.63299557]
[1772671981975,0.49393983,90.883,90.85,0.63299557]
[1772671982973,0.49393983,90.881,90.85,0.63299557]
[1772671983374,0.49393983,90.881,90.841,11.00824517]
[1772671983874,0.49393983,90.881,90.837,0.24872869]
[1772671984560,0.49393983,90.879,90.823,11.01038742]
[1772671985083,0.49393983,90.877,90.804,3.69383402]
[1772671985586,0.49393983,90.877,90.827,0.49577034]
[1772671985779,0.49393983,90.869,90.821,0.4970248]
[1772671985978,0.49393983,90.869,90.802,0.4970248]
[1772671987490,0.49393983,90.867,90.804,0.4982652]
[1772671989767,0.49393983,90.865,90.806,0.50071029]
[1772671990272,38.51825765,90.866,90.806,0.50071029]
[1772671990273,0.49393983,90.859,90.806,0.50071029]
[1772671991265,0.49393983,90.857,90.808,0.5030964]
[1772671991469,0.49393983,90.855,90.808,0.5030964]
[1772671992365,0.49393983,90.849,90.801,0.50426973]
[1772671993392,0.49393983,90.847,90.801,0.50426973]
[1772671993779,0.49393983,90.847,90.802,0.50657633]
[1772671995066,0.49393983,90.847,90.802,11.51954961]
[1772671996171,0.49393983,90.845,90.802,0.50657633]
[1772671996369,0.49393983,90.845,90.8,0.52]
[1772671996700,0.49393983,90.845,90.8,1.02954895]
[1772671997679,0.49393983,90.845,90.801,0.51064796]
[1772671998168,0.49393983,90.843,90.8,0.52]
[1772671998570,0.55657772,90.839,90.8,1e-08]
[1772671998793,0.55657772,90.809,90.758,0.52864768]
[1772671998970,0.55657772,90.809,90.747,27.5490319]
[1772671999295,0.55657772,90.809,90.764,0.52864768]
[1772671999675,0.55657772,90.809,90.757,27.54608451]
[1772671999873,0.55657772,90.809,90.774,0.52864768]
[1772672000078,0.55657772,90.829,90.774,0.52864768]
[1772672000284,4.18854416,90.83,90.776,0.52864768]
[1772672000285,0.55657772,90.827,90.776,0.52864768]
[1772672002192,0.55657772,90.819,90.776,0.52864768]
[1772672002501,0.55657772,90.809,90.772,10.44608071]
[1772672003674,0.55657772,90.807,90.773,0.52864768]
[1772672004496,0.55657772,90.807,90.773,11.54513936]
[1772672004708,11.01224561,90.808,90.774,0.52864768]
[1772672004895,11.56882333,90.808,90.774,0.52864768]
[1772672005078,0.55657772,90.807,90.774,0.52864768]
[1772672005782,0.55657772,90.805,90.775,11.01624896]
[1772672006186,0.55657772,90.805,90.776,0.52864768]
[1772672006387,11.01196607,90.811,90.776,0.52864768]
[1772672006581,0.5102755,90.81,90.776,0.52864768]
[1772672007303,0.5102755,90.831,90.775,38.55687137]
[1772672007600,0.56382897,90.83,90.775,38.55687137]
[1772672007982,0.56382897,90.828,90.775,38.55687137]
[1772672009500,0.56382897,90.826,90.775,38.55687137]
[1772672010699,11.00909351,90.834,90.775,38.55687137]
[1772672011000,0.56382897,90.833,90.775,38.55687137]
[1772672011506,0.56382897,90.829,90.775,11.01624896]
[1772672012100,4.25766299,90.829,90.775,11.01624896]
[1772672012308,0.56382897,90.819,90.772,10.44608071]
[1772672012804,0.56382897,90.819,90.773,11.01649168]
[1772672013122,0.56382897,90.817,90.772,10.44608071]
[1772672013620,0.56382897,90.815,90.772,10.44608071]
[1772672015106,0.56382897,90.815,90.773,11.01649168]
[1772672015485,0.56382897,90.813,90.773,11.01649168]
[1772672015991,0.56382897,90.813,90.773,38.5577209]
[1772672016192,0.56382897,90.813,90.773,11.01649168]
[1772672017582,0.56382897,90.811,90.772,10.44608071]
[1772672019020,0.56382897,90.799,90.705,44.09889024]
[1772672019180,0.56382897,90.789,90.708,30.0]
[1772672019481,0.56382897,90.789,90.711,3.69383402]
[1772672019683,0.56382897,90.787,90.74,11.02043734]
[1772672020182,0.56382897,90.787,90.724,27.55607839]
[1772672020183,0.56382897,90.779,90.724,27.55607839]
[1772672020383,0.56382897,90.779,90.733,11.02123239]
[1772672021605,4.18854416,90.81,90.751,0.22077164]
[1772672021790,4.18854416,90.8,90.751,0.22077164]
[1772672022104,4.18854416,90.8,90.751,11.01911266]
[1772672022291,4.18854416,90.8,90.752,0.2214287]
[1772672022494,4.18854416,90.81,90.752,0.2214287]
[1772672023399,4.18854416,90.81,90.746,11.01972174]
[1772672023605,4.18854416,90.79,90.736,0.22206989]
[1772672023903,0.5102755,90.788,90.742,11.02022693]
[1772672024399,0.5102755,90.788,90.743,0.22271263]
[1772672025108,0.5102755,90.788,90.734,27.55278693]
[1772672025314,0.5102755,90.788,90.751,0.2233549]
[1772672026211,0.5102755,90.786,90.752,11.0190409]
[1772672026407,11.01406496,90.793,90.753,0.22398177]
[1772672028810,0.56024182,90.801,90.755,0.22572601]
[1772672029008,38.54540648,90.802,90.755,0.22572601]
[1772672029009,11.01297328,90.802,90.755,0.22572601]
[1772672029206,0.56024182,90.812,90.755,0.22572601]
[1772672029407,0.56024182,90.809,90.755,0.22572601]
[1772672031311,0.56024182,90.807,90.757,0.2269152]
[1772672035218,0.56024182,90.805,90.759,0.22992998]
[1772672037226,11.01273071,90.804,90.761,0.23034559]
[1772672037520,0.56024182,90.803,90.761,0.23034559]
[1772672039017,11.01273071,90.804,90.761,0.23034559]
[1772672039216,11.01200308,90.81,90.762,38.56239394]
[1772672039516,11.01200308,90.81,90.763,0.23074396]
[1772672040106,11.5722449,90.81,90.763,0.23074396]
[1772672041222,0.56024182,90.809,90.765,0.23181099]
[1772672042117,38.5297484,90.839,90.765,0.23181099]
[1772672042322,0.56024182,90.838,90.765,0.23181099]
[1772672046924,0.56024182,90.836,90.767,0.23422561]
[1772672049720,0.56024182,90.834,90.769,0.23521881]
[1772672051931,0.56024182,90.832,90.771,0.23664802]
[1772672054535,0.56024182,90.83,90.773,0.23757832]
[1772672056530,0.56024182,90.837,90.775,0.23782201]
[1772672057842,0.56024182,90.836,90.777,0.23804249]
[1772672058941,0.57870936,90.834,90.776,11.01612761]
[1772672059145,0.57870936,90.829,90.776,11.01612761]
[1772672059340,0.57870936,90.819,90.776,11.01612761]
[1772672059533,0.57870936,90.833,90.777,0.23894183]
[1772672060419,0.57870936,90.831,90.779,0.23938287]
[1772672062524,0.57870936,90.819,90.751,0.24025084]
[1772672062730,0.57870936,90.809,90.751,11.01916232]
[1772672062938,0.57870936,90.799,90.736,0.24068012]
[1772672063145,0.57870936,90.799,90.751,0.24068012]
[1772672064421,0.57870936,90.797,90.753,0.24110234]
[1772672066749,0.58323864,90.795,90.755,0.2423482]
[1772672067737,0.58323864,90.795,90.754,11.01879806]
[1772672067941,0.58323864,90.795,90.754,11.26196253]
[1772672068144,0.58323864,90.792,90.75,0.1]
[1772672068335,0.58323864,90.792,90.751,11.01916232]
[1772672068941,0.58323864,90.79,90.751,11.01916232]
[1772672070234,0.58323864,90.79,90.752,0.24394942]
[1772672070461,104.9,90.819,90.752,0.24394942]
[1772672070462,0.58323864,90.8,90.752,0.24394942]
[1772672071558,0.58323864,90.816,90.754,0.2443415]
[1772672073438,0.58323864,90.814,90.755,11.01867665]
[1772672073643,0.58323864,90.814,90.756,0.24509074]
[1772672075746,0.58323864,90.812,90.757,11.26426517]
[1772672075954,0.58323864,90.812,90.758,0.24619506]
[1772672077756,0.58323864,90.812,90.75,0.1]
[1772672077757,0.58323864,90.799,90.75,11.11927969]
[1772672077959,0.58323864,90.799,90.75,0.1]
[1772672078165,0.58323864,90.789,90.75,0.1]
[1772672080447,0.58323864,90.787,90.75,0.1]
[1772672080648,0.58323864,90.787,90.672,44.11495456]
[1772672080649,0.58323864,90.787,90.705,0.24695074]
[1772672083563,0.58323864,90.785,90.707,0.2459062]
[1772672084774,0.58323864,90.783,90.709,0.24521942]
[1772672085470,0.58323864,90.783,90.711,0.24454092]
[1772672085769,0.58323864,90.791,90.721,0.24386848]
[1772672086662,0.58323864,90.789,90.726,0.24386848]
[1772672086851,0.58323864,90.796,90.732,0.24320381]
[1772672087050,0.58323864,90.796,90.733,0.24320381]
[1772672087859,0.58323864,90.808,90.742,0.24254717]
[1772672088059,0.58323864,90.808,90.752,0.24254717]
[1772672088764,0.56101281,90.822,90.757,0.24255381]
[1772672088974,0.56101281,90.822,90.761,0.24190478]
[1772672091569,0.56101281,90.822,90.766,0.24063491]
[1772672091792,0.56101281,90.842,90.772,0.24063491]
[1772672091950,0.56101281,90.842,90.774,0.24000629]
[1772672092649,4.19371696,90.87,90.776,0.24000629]
[1772672092855,0.56101281,90.866,90.788,0.23938419]
[1772672093074,0.56101281,90.866,90.802,0.23938419]
[1772672093577,0.56101281,90.864,90.804,0.23938419]
[1772672097958,0.56101281,90.869,90.812,11.2487206]
[1772672098176,0.56101281,90.869,90.813,0.23637312]
[1772672099778,0.56101281,90.867,90.815,0.23578612]
[1772672101184,0.56101281,90.867,90.818,0.23464406]
[1772672101884,0.56101281,90.867,90.82,0.23407514]
[1772672103284,0.56101281,90.867,90.821,38.53734267]
[1772672103471,0.56101281,90.881,90.825,0.23351923]
[1772672103670,0.56101281,90.881,90.824,3.69383402]
[1772672103671,0.56101281,90.881,90.831,0.23351923]
[1772672104788,0.56101281,90.881,90.832,38.5326757]
[1772672104990,0.56101281,90.879,90.82,0.2317969]
[1772672105201,0.56101281,90.879,90.822,0.2317969]
[1772672106486,0.56101281,90.879,90.825,0.2312604]
[1772672107186,0.56101281,90.877,90.827,0.23073645]
[1772672110183,0.56101281,90.896,90.829,0.22919151]
[1772672110376,11.00146319,90.897,90.798,0.22919151]
[1772672110377,0.56101281,90.869,90.798,0.22919151]
[1772672112580,0.56101281,90.867,90.8,0.22757272]
[1772672114672,0.56101281,90.865,90.802,0.2266204]
[1772672116076,0.56101281,90.865,90.801,93.61130382]
[1772672116077,0.56101281,90.865,90.812,0.22505344]
[1772672116690,3.69383402,90.901,90.804,3.69383402]
[1772672116691,0.56101281,90.896,90.825,0.28432314]
[1772672116889,43.97249951,90.966,90.824,3.69383402]
[1772672116890,0.2,90.94,90.844,0.55368095]
[1772672117091,10.99747904,90.93,90.862,0.55368095]
[1772672117388,0.2,90.94,90.872,0.55368095]
[1772672117773,10.99771775,90.928,90.872,0.55368095]
[1772672117968,10.99722266,90.933,90.872,0.55368095]
[1772672118186,10.99761657,90.929,90.872,0.55368095]
[1772672118989,0.565216,90.919,90.877,0.56188575]
[1772672119777,0.565216,90.919,90.873,11.00436873]
[1772672119977,0.565216,90.918,90.873,11.56625448]
[1772672120576,0.565216,90.926,90.874,0.56188575]
[1772672120880,0.565216,90.917,90.875,11.00412654]
[1772672121691,0.565216,90.917,90.876,0.56188575]
[1772672122395,0.565216,90.917,90.875,11.00412654]
[1772672123602,0.565216,90.917,90.874,0.56188575]
[1772672124381,0.565216,90.915,90.874,0.56188575]
[1772672125593,0.565216,90.913,90.875,11.00412654]
[1772672126295,0.565216,90.913,90.875,11.56601229]
[1772672127416,0.565216,90.913,90.875,11.00412654]
[1772672128010,0.565216,90.913,90.868,27.51220336]
[1772672128011,0.52181496,90.911,90.868,38.5171776]
[1772672128196,0.52181496,90.909,90.862,11.00561604]
[1772672130686,0.52181496,90.907,90.851,0.56051336]
[1772672132500,0.52181496,90.907,90.727,24.55972203]
[1772672132501,0.52181496,90.889,90.834,11.00909351]
[1772672132705,0.52181496,90.879,90.834,11.00909351]
[1772672134204,0.52181496,90.879,90.83,11.00955461]
[1772672134600,0.52181496,90.869,90.8,39.10676885]
[1772672134908,0.52181496,90.859,90.801,0.56051336]
[1772672136695,0.52181496,90.857,90.803,0.56051336]
[1772672138995,0.52181496,90.855,90.805,0.56051336]
[1772672140509,11.00667004,90.854,90.806,11.01248816]
[1772672140809,0.52181496,90.853,90.807,0.56051336]
[1772672142506,0.52181496,90.851,90.801,11.01309456]
[1772672143313,0.52181496,90.851,90.801,11.57360792]
[1772672143717,0.52181496,90.851,90.802,0.56051336]
[1772672144715,0.52181496,90.871,90.804,0.56051336]
[1772672145794,3.69383402,90.891,90.803,38.54498198]
[1772672145795,0.52181496,90.896,90.807,0.28432314]
[1772672145995,0.52181496,90.904,90.825,0.28432314]
[1772672146210,0.52181496,90.904,90.819,0.14216157]
[1772672146211,0.52181496,90.904,90.834,0.56051336]
[1772672146406,0.52181496,90.904,90.844,0.56051336]
[1772672146718,0.52181496,90.904,90.849,0.56051336]
[1772672146888,0.2,90.92,90.853,0.56051336]
[1772672146889,0.52181496,90.919,90.853,0.56051336]
[1772672147092,0.52181496,90.919,90.863,0.56051336]
[1772672147711,0.2,90.92,90.854,0.28432314]
[1772672147712,1e-08,90.92,90.873,0.56051336]
[1772672148794,1e-08,90.92,90.877,3.69383402]
[1772672149000,1e-08,90.92,90.878,0.52972919]
[1772672149513,1e-08,90.92,90.874,38.51486672]
[1772672149514,0.52933108,90.92,90.874,38.51486672]
[1772672149815,0.52933108,90.92,90.874,39.04459591]
[1772672150009,0.52933108,90.92,90.875,0.52972919]
[1772672151214,0.52933108,90.92,90.877,0.52972919]
[1772672152699,0.52933107,90.919,90.877,0.52972919]
[1772672153216,0.52933107,90.917,90.879,0.52972919]
[1772672155512,0.52933107,90.917,90.881,0.52972919]
[1772672157520,0.52933107,90.917,90.883,0.52972919]
[1772672158824,0.52933107,90.917,90.882,38.51147641]
[1772672159717,0.52933107,90.917,90.882,27.50819744]
[1772672160123,0.52933107,90.917,90.882,28.03792663]
[1772672160320,0.52933107,90.917,90.883,0.52972919]
[1772672161522,0.52933107,90.916,90.883,0.52972919]
[1772672161833,0.52933107,90.916,90.882,27.50819744]
[1772672162518,0.52933107,90.916,90.857,1.10063066]
[1772672162519,0.52933107,90.914,90.868,11.00497424]
[1772672162904,0.52933107,90.914,90.869,0.52972919]
[1772672165408,0.52933107,90.914,90.871,0.52972919]
[1772672166807,0.52933107,90.912,90.871,0.52972919]
[1772672167521,0.52933107,90.912,90.873,0.52972919]
[1772672167726,0.52933108,90.92,90.873,0.52972919]
[1772672168822,0.52933108,90.92,90.863,105.32227289]
[1772672168823,0.52933108,90.92,90.875,0.52972919]
[1772672170638,0.52933107,90.918,90.875,0.52972919]
[1772672171330,0.52933107,90.916,90.877,0.52972919]
[1772672174319,0.52933107,90.914,90.879,0.52972919]
[1772672176838,0.52933107,90.914,90.881,0.52972919]
[1772672180252,1e-08,90.92,90.883,0.56073087]
[1772672180622,1e-08,90.92,90.885,0.56073087]
[1772672182137,1e-08,90.92,90.887,0.56073087]
[1772672182816,1e-08,90.92,90.886,38.50978147]
[1772672182817,1e-08,90.92,90.89,0.56073087]
[1772672183433,0.56392885,90.939,90.891,0.56073087]
[1772672183617,0.56392885,90.938,90.889,3.69383402]
[1772672183830,0.56392885,90.938,90.888,0.56073087]
[1772672184022,0.56392885,90.936,90.89,0.56073087]
[1772672186638,0.52567244,90.934,90.892,0.52304651]
[1772672189387,0.52567244,90.934,90.865,88.04256102]
[1772672189388,0.52567244,90.932,90.894,0.52304651]
[1772672189539,0.52567244,90.932,90.893,38.5068157]
[1772672189851,0.52567244,90.932,90.893,39.02986221]
[1772672190246,0.52567244,90.932,90.894,0.52304651]
[1772672192047,0.52567244,90.93,90.886,0.52304651]
[1772672193958,0.52567244,90.928,90.887,11.00267364]
[1772672194471,0.52567244,90.926,90.868,11.00497424]
[1772672194762,0.52567244,90.919,90.872,0.52304651]
[1772672195859,0.52567244,90.925,90.872,0.52304651]
[1772672196259,0.52567244,90.925,90.874,0.52304651]
[1772672197364,0.52567244,90.938,90.879,0.52304651]
[1772672199944,0.52567244,90.938,90.881,0.52304651]
[1772672201857,0.52567244,90.938,90.883,0.52304651]
[1772672203162,0.52567244,90.936,90.878,11.00375584]
[1772672204661,4.38135323,90.94,90.872,61.3]
[1772672204662,0.52567244,90.934,90.872,11.00448983]
[1772672205175,0.52567244,90.929,90.872,11.00448983]
[1772672205652,0.52567244,90.929,90.872,11.52753634]
[1772672205853,0.52567244,90.929,90.873,0.52304651]
[1772672206872,10.99771247,90.928,90.874,11.00424763]
[1772672207073,0.52567244,90.927,90.875,0.52304651]
[1772672207656,0.52567244,90.927,90.874,11.00424763]
[1772672207987,0.52567244,90.927,90.875,0.52304651]
[1772672210379,0.56047029,90.925,90.877,0.53810811]
[1772672212577,0.56047029,90.925,90.879,0.53810811]
[1772672213082,0.56047029,90.923,90.879,0.53810811]
[1772672214659,0.2,90.94,90.884,0.53810811]
[1772672214874,0.2,90.94,90.894,0.53810811]
[1772672215181,0.56047029,90.939,90.894,0.53810811]
[1772672219680,0.56047029,90.939,90.899,0.53810811]
[1772672221078,0.56047029,90.939,90.88,88.028169]
[1772672221079,0.56047029,90.937,90.886,11.0027947]
[1772672222863,0.56047029,90.935,90.885,27.50714217]
[1772672223064,0.56047029,90.929,90.878,11.00376328]
[1772672223671,0.56047029,90.929,90.879,0.53810811]
[1772672226481,0.56047029,90.929,90.862,3.69383402]
[1772672226482,0.56047029,90.927,90.881,0.53810811]
[1772672228792,0.56047029,90.925,90.883,0.53810811]
[1772672230786,0.56047029,90.931,90.883,0.53810811]
[1772672231080,0.56047029,90.929,90.885,0.53810811]
[1772672233792,0.56047029,90.929,90.887,0.53810811]
[1772672238078,0.56047029,90.927,90.889,0.53810811]
[1772672239389,0.52472529,90.935,90.889,0.53810811]
[1772672239590,0.2,90.94,90.892,0.52942755]
[1772672240178,0.2,90.94,90.893,38.5068157]
[1772672240374,0.52472529,90.938,90.894,0.52942755]
[1772672240578,0.52472529,90.938,90.893,39.03624325]
[1772672240780,0.52472529,90.938,90.894,0.52942755]
[1772672243787,38.48733766,90.939,90.895,11.53113281]
[1772672243788,0.52472529,90.936,90.895,11.53113281]
[1772672243991,0.52472529,90.936,90.896,0.52942755]
[1772672246799,0.55520147,90.934,90.898,0.51522117]
[1772672248101,10.99710776,90.933,90.9,0.51522117]
[1772672248299,0.55520147,90.936,90.9,0.51522117]
[1772672249796,0.55520147,90.936,90.902,0.51522117]
[1772672252394,0.55520147,90.936,90.904,0.51522117]
[1772672253185,0.55520147,90.934,90.904,0.51522117]
[1772672254517,0.55520147,90.932,90.895,0.51522117]
[1772672255712,0.55520147,90.932,90.897,0.51522117]
[1772672256933,0.55520147,90.938,90.897,0.51522117]
[1772672258713,0.55520147,90.936,90.899,0.51522117]
[1772672262726,0.55520147,90.934,90.901,0.51522117]
[1772672264711,0.55520147,90.934,90.9,11.00110011]
[1772672264906,0.55520147,90.932,90.9,11.00110011]
[1772672265102,0.55520147,90.932,90.901,0.51522117]
[1772672267831,0.55520147,90.932,90.903,0.51522117]
[1772672269125,1e-08,90.94,90.903,0.5122068]
[1772672269308,0.50838168,90.94,90.903,0.5122068]
[1772672269508,1e-08,90.94,90.903,0.5122068]
[1772672270601,1e-08,90.94,90.905,0.5122068]
[1772672271598,1e-08,90.94,90.904,11.00061603]
[1772672271822,1e-08,90.94,90.895,11.00170526]
[1772672273919,1e-08,90.94,90.895,0.5122068]
[1772672275916,1e-08,90.94,90.897,0.5122068]
[1772672277637,0.50838167,90.939,90.898,11.00134216]
[1772672277830,0.50838167,90.939,90.898,11.51354896]
[1772672278133,0.50838167,90.939,90.899,0.5122068]
[1772672279617,10.99650311,90.938,90.9,11.00110011]
[1772672279831,0.50838167,90.937,90.9,11.00110011]
[1772672280629,0.50838167,90.937,90.896,11.00157509]
[1772672281223,0.50838167,90.937,90.897,0.5122068]
[1772672282842,10.99674496,90.936,90.898,11.00134216]
[1772672283024,0.50838167,90.935,90.898,11.51354896]
[1772672283334,0.50838167,90.935,90.899,0.5122068]
[1772672285327,0.50838167,90.935,90.901,0.5122068]
[1772672285823,0.50838167,90.933,90.901,0.5122068]
[1772672287446,0.50838167,90.933,90.902,38.50300322]
[1772672287641,0.50838167,90.933,90.903,0.5122068]
[1772672288751,0.50838167,90.933,90.904,11.00061603]
[1772672289126,0.50838167,90.931,90.904,11.00061603]
[1772672289846,0.50838167,90.931,90.904,39.01436291]
[1772672290047,0.50838167,90.931,90.904,11.00061603]
[1772672290431,0.50838167,90.931,90.894,11.0018263]
[1772672290832,0.50838167,90.929,90.891,0.5122068]
[1772672295253,0.50838167,90.927,90.893,0.5122068]
[1772672297649,10.99795438,90.926,90.894,11.0018263]
[1772672297854,0.50838167,90.925,90.895,0.5122068]
[1772672300563,0.51753462,90.923,90.896,11.00158422]
[1772672300966,0.51753462,90.923,90.836,104.4]
[1772672300967,0.51753462,90.919,90.864,0.5177621]
[1772672303265,0.51753462,90.917,90.866,0.5177621]
[1772672305661,38.49622736,90.918,90.842,44.03206593]
[1772672305662,0.51753462,90.915,90.868,0.5177621]
[1772672307763,0.51753462,90.915,90.843,61.3]
[1772672307764,0.51631025,90.913,90.87,0.48693633]
[1772672309660,10.99964801,90.912,90.871,11.00461093]
[1772672309878,0.51631025,90.911,90.872,0.48693633]
[1772672314669,10.99989,90.91,90.873,11.00436873]
[1772672314870,0.51631025,90.909,90.874,0.48693633]
[1772672316873,0.51631025,90.907,90.875,11.49106287]
[1772672317072,0.51631025,90.907,90.875,11.00412654]
[1772672318180,0.51631025,90.905,90.875,11.00412654]
[1772672319678,0.51631025,90.905,90.875,11.49106287]
[1772672319877,0.51631025,90.905,90.876,0.48693633]
[1772672320257,0.51631025,90.903,90.877,11.00388437]
[1772672320657,0.51631025,90.903,90.856,0.48693633]
[1772672321874,0.51631025,90.901,90.858,0.48693633]
[1772672322881,0.51631025,90.899,90.86,0.48693633]
[1772672324081,0.51631025,90.899,90.846,0.48693633]
[1772672324292,0.51631025,90.879,90.821,0.48693633]
[1772672324580,0.51631025,90.869,90.821,0.48693633]
[1772672324977,0.51631025,90.867,90.823,0.48693633]
[1772672326884,0.51631025,90.865,90.825,0.48693633]
[1772672329374,0.48053951,90.863,90.827,0.50730952]
[1772672333792,0.48053951,90.861,90.829,0.50730952]
[1772672334095,0.48053951,90.861,90.823,0.50730952]
[1772672334282,38.51995333,90.862,90.802,0.50730952]
[1772672334283,0.48053951,90.859,90.802,0.50730952]
[1772672334485,0.48053951,90.849,90.801,11.01309456]
[1772672334791,0.48053951,90.849,90.801,0.50730952]
[1772672335293,38.51995333,90.862,90.801,0.50730952]
[1772672335471,11.00570095,90.862,90.801,0.50730952]
[1772672335975,27.51145669,90.872,90.8,93.71230531]
[1772672335976,27.51145669,90.872,90.803,0.50730952]
[1772672336573,11.00388437,90.877,90.806,0.50730952]
[1772672337266,38.51359529,90.877,90.806,0.50730952]
[1772672337498,0.40456709,90.876,90.806,0.50730952]
[1772672338801,0.40415061,90.874,90.808,0.50730952]
[1772672340791,11.00436873,90.873,90.81,0.50730952]
[1772672341096,0.40290385,90.879,90.813,0.50730952]
[1772672341874,0.40290385,90.878,90.813,0.50730952]
[1772672343501,0.40211564,90.876,90.814,38.54031315]
[1772672343694,0.40211564,90.876,90.815,0.50730952]
[1772672345682,0.40119867,90.874,90.817,0.50730952]
[1772672347504,0.40030467,90.872,90.819,0.50730952]
[1772672350101,0.39978493,90.87,90.821,0.50730952]
[1772672352008,0.39906143,90.868,90.823,0.50730952]
[1772672353712,0.39870183,90.866,90.825,0.50730952]
[1772672355193,11.00509535,90.867,90.825,0.50730952]
[1772672355400,11.40255146,90.872,90.825,0.50730952]
[1772672355918,0.39800848,90.871,90.827,0.50730952]
[1772672357907,0.39755416,90.869,90.829,0.50730952]
[1772672360504,0.39713425,90.867,90.831,0.5165442]
[1772672365297,0.39548099,90.865,90.833,0.5165442]
[1772672372008,27.51064373,90.874,90.798,3.69383402]
[1772672372009,0.3934506,90.863,90.835,0.47423047]
[1772672375028,0.3925777,90.861,90.829,11.48381472]
[1772672377512,0.39188289,90.859,90.829,0.47423047]
[1772672377712,0.39188289,90.859,90.824,11.48442639]
[1772672378730,0.39188289,90.859,90.732,24.65150122]
[1772672378731,0.39188289,90.859,90.802,0.47423047]
[1772672378923,4.18573941,90.85,90.803,0.47423047]
[1772672379123,0.39133826,90.849,90.803,0.47423047]
[1772672379616,0.39133826,90.847,90.805,0.47423047]
[1772672385424,0.39034247,90.845,90.807,0.47423047]
[1772672387050,0.39034247,90.845,90.806,11.01248816]
[1772672387542,0.3898254,90.843,90.806,0.47423047]
[1772672388135,11.00788164,90.844,90.806,0.47423047]
[1772672388327,0.38957504,90.848,90.806,0.47423047]